fUST/lending_fUST_20250620
["ID","MTS","AMOUNT","RATE_DAILY","PERIOD"]
[366756452,1750433449094,-500.0,0.00021725,2]
[366756453,1750433449104,-304.26210019,0.00021725,2]
[366756454,1750433449114,-500.0,0.00021725,2]
[366756455,1750433449124,-489.61595021,0.00021753,2]
[366756456,1750433449134,-549.57038776,0.00021753,2]
[366756457,1750433449145,-870.3,0.0002177,2]
[366756458,1750433449155,-2937.44,0.0002177,2]
[366756459,1750433449166,-3686.87,0.0002177,2]
[366756460,1750433449175,-496.49,0.0002177,2]
[366756461,1750433449186,-2627.66,0.00021772,2]
[366756462,1750433449196,-2000.48,0.00021772,2]
[366756463,1750433449206,-2663.94,0.00021772,2]
[366756464,1750433449215,-970.84,0.00021772,2]
[366756465,1750433449226,-1125.24,0.00021772,2]
[366756466,1750433449236,-1152.09,0.00021772,2]
[366756467,1750433449247,-1789.36,0.00021772,2]
[366756468,1750433449256,-460.0,0.00021772,2]
[366756469,1750433449266,-460.0,0.00021772,2]
[366756470,1750433449276,-485.8,0.00021772,2]
[366756471,1750433449286,-245.83220625,0.00021772,2]
[366756472,1750433449296,-460.0,0.00021772,2]
[366756473,1750433449307,-514.53,0.00021772,2]
[366756474,1750433449316,-623.89,0.00021772,2]
[366756475,1750433449326,-248.79008577,0.00021772,2]
[366756476,1750433449335,-460.0,0.00021772,2]
[366756477,1750433449346,-260.93138302,0.00021775,2]
[366756478,1750433449356,-4105.96965496,0.00021797,6]
[366756479,1750433449365,-640.0,0.000218,2]
[366756480,1750433449375,-313.9982552,0.00021807,2]
[366756481,1750433449385,-1748.0,0.00021807,2]
[366756482,1750433449394,-1748.0,0.00021807,2]
[366756483,1750433449403,-1748.0,0.00021807,2]
[366756484,1750433449414,-1748.0,0.00021807,2]
[366756485,1750433449425,-1748.0,0.00021807,2]
[366756486,1750433449435,-1748.0,0.00021807,2]
[366756487,1750433449444,-1748.0,0.00021807,2]
[366756488,1750433449454,-1748.0,0.00021807,2]
[366756489,1750433449464,-1748.0,0.00021807,2]
[366756490,1750433449474,-1748.0,0.00021807,2]
[366756491,1750433449484,-1748.0,0.00021807,2]
[366756492,1750433449495,-1748.0,0.00021807,2]
[366756493,1750433449505,-317.0,0.00021807,2]
[366756494,1750433449515,-1748.0,0.00021807,2]
[366756495,1750433449525,-317.0,0.00021807,2]
[366756496,1750433449535,-1748.0,0.00021807,2]
[366756497,1750433449545,-317.0,0.00021807,2]
[366756498,1750433449556,-1748.0,0.00021807,2]
[366756499,1750433449567,-466.64435264,0.00021807,2]
[366756500,1750433449577,-1748.0,0.00021807,2]
[366756501,1750433449587,-317.0,0.00021807,2]
[366756502,1750433449597,-1748.0,0.00021807,2]
[366756503,1750433449607,-1748.0,0.00021807,2]
[366756504,1750433449617,-1748.0,0.00021807,2]
[366756505,1750433449627,-1748.0,0.00021807,2]
[366756506,1750433449637,-1748.0,0.00021807,2]
[366756507,1750433449647,-1748.0,0.00021807,2]
[366756508,1750433449657,-896.1030757,0.00021807,2]
[366756509,1750433449667,-317.0,0.00021807,2]
[366756510,1750433449678,-317.0,0.00021807,2]
[366756511,1750433449687,-317.0,0.00021807,2]
[366756512,1750433449698,-317.0,0.00021807,2]
[366756513,1750433449709,-1748.0,0.00021807,2]
[366756514,1750433449719,-1748.0,0.00021807,2]
[366756515,1750433449729,-1748.0,0.00021807,2]
[366756516,1750433449740,-1748.0,0.00021807,2]
[366756517,1750433449750,-1748.0,0.00021807,2]
[366756518,1750433449761,-1748.0,0.00021807,2]
[366756519,1750433449773,-1748.0,0.00021807,2]
[366756520,1750433449783,-1748.0,0.00021807,2]
[366756521,1750433449793,-1748.0,0.00021807,2]
[366756522,1750433449804,-1748.0,0.00021807,2]
[366756523,1750433449814,-1748.0,0.00021807,2]
[366756524,1750433449825,-317.0,0.00021807,2]
[366756525,1750433449836,-1748.0,0.00021807,2]
[366756526,1750433449847,-317.0,0.00021807,2]
[366756527,1750433449857,-428.04850253,0.00021807,2]
[366756528,1750433449867,-317.0,0.00021807,2]
[366756529,1750433449877,-317.0,0.00021807,2]
[366756530,1750433449887,-317.0,0.00021807,2]
[366756531,1750433449896,-1748.0,0.00021807,2]
[366756532,1750433449906,-151.0,0.00021808,2]
[366756533,1750433449916,-218.60418071,0.0002181,12]
[366756534,1750433449926,-207.91898637,0.0002181,6]
[366756535,1750433449936,-151.0,0.00021816,2]
[366756536,1750433449945,-207.597383,0.00021825,2]
[366756537,1750433449955,-215.0738,0.00021833,2]
[366756538,1750433449965,-168.0,0.00021847,2]
[366756539,1750433449975,-460.0,0.00021854,2]
[366756540,1750433449984,-460.0,0.00021854,2]
[366756541,1750433449995,-460.0,0.00021854,2]
[366756542,1750433450007,-805.06,0.00021854,2]
[366756543,1750433450017,-460.0,0.00021854,2]
[366756544,1750433450027,-460.0,0.00021854,2]
[366756545,1750433450037,-460.0,0.00021854,2]
[366756546,1750433450047,-460.0,0.00021862,2]
[366756547,1750433450057,-682.55,0.00021862,2]
[366756548,1750433450068,-717.65,0.00021862,2]
[366756549,1750433450078,-460.0,0.00021862,2]
[366756550,1750433450089,-2812.19,0.00021862,2]
[366756551,1750433450099,-600.49351442,0.00021862,2]
[366756552,1750433450109,-557.69,0.00021862,2]
[366756553,1750433450119,-460.0,0.00021862,2]
[366756554,1750433450129,-1650.16,0.00021862,2]
[366756555,1750433450139,-460.0,0.00021862,2]
[366756556,1750433450148,-499.09,0.00021862,2]
[366756557,1750433450158,-487.35,0.00021862,2]
[366756558,1750433450168,-1344.78,0.00021862,2]
[366756559,1750433450177,-168.0,0.00021863,2]
[366756560,1750433450187,-1358.6,0.00021863,2]
[366756561,1750433450197,-3335.39,0.00021863,2]
[366756562,1750433450206,-1114.62,0.00021863,2]
[366756563,1750433450216,-723.54,0.00021864,2]
[366756564,1750433450226,-203.52422374,0.00021864,2]
[366756565,1750433450236,-801.84,0.00021864,2]
[366756566,1750433450246,-905.39,0.00021864,2]
[366756567,1750433450255,-460.0,0.00021875,2]
[366756568,1750433450264,-476.53,0.00021875,2]
[366756569,1750433450274,-614.91078384,0.00021888,2]
[366756570,1750433450283,-151.0,0.000219,2]
[366756571,1750433450293,-151.0,0.000219,4]
[366756572,1750433450303,-151.0,0.00021905,2]
[366756573,1750433450312,-232.181356,0.00021906,2]
[366756574,1750433450322,-151.0,0.00021906,2]
[366756575,1750433450332,-192.715596,0.00021906,2]
[366756576,1750433450341,-200.0,0.00021917,2]
[366756577,1750433450350,-1915.83741953,0.00021917,2]
[366756578,1750433450359,-500.0,0.00021917,2]
[366756579,1750433450495,-500.0,0.00021917,2]
[366756580,1750433450505,-500.0,0.00021917,2]
[366756581,1750433450515,-500.0,0.00021917,2]
[366756582,1750433450525,-504.41932248,0.00021917,2]
[366756583,1750433450535,-1201.593788,0.00021917,2]
[366756584,1750433450545,-1201.593788,0.00021917,2]
[366756585,1750433450555,-151.0,0.00021917,2]
[366756586,1750433450564,-570.26621,0.00021917,2]
[366756587,1750433450574,-570.26621,0.00021917,2]
[366756588,1750433450583,-500.0,0.00021917,2]
[366756589,1750433450593,-500.0,0.00021917,2]
[366756590,1750433450603,-508.34594437,0.00021917,2]
[366756591,1750433450613,-153.0,0.00021918,2]
[366756592,1750433450622,-153.0,0.00021918,2]
[366756593,1750433450632,-153.0,0.00021918,2]
[366756594,1750433450642,-153.0,0.00021918,2]
[366756595,1750433450651,-153.0,0.00021918,2]
[366756596,1750433450661,-153.0,0.00021918,2]
[366756597,1750433450671,-153.0,0.00021918,2]
[366756598,1750433450680,-153.0,0.00021918,2]
[366756599,1750433450690,-153.0,0.00021918,2]
[366756600,1750433450700,-153.0,0.00021918,2]
[366756601,1750433450709,-153.0,0.00021918,2]
[366756602,1750433450719,-153.0,0.00021918,2]
[366756603,1750433450729,-153.0,0.00021918,2]
[366756604,1750433450739,-153.0,0.00021918,2]
[366756605,1750433450749,-153.0,0.00021918,2]
[366756606,1750433450758,-153.0,0.00021918,2]
[366756607,1750433450767,-153.0,0.00021918,2]
[366756608,1750433450777,-153.0,0.00021918,2]
[366756609,1750433450787,-153.0,0.00021918,2]
[366756610,1750433450796,-153.0,0.00021918,2]
[366756611,1750433450807,-153.0,0.00021918,2]
[366756612,1750433450816,-153.0,0.00021918,2]
[366756613,1750433450826,-153.0,0.00021918,2]
[366756614,1750433450835,-153.0,0.00021918,2]
[366756615,1750433450845,-153.0,0.00021918,2]
[366756616,1750433450855,-153.0,0.00021918,2]
[366756617,1750433450865,-153.0,0.00021918,2]
[366756618,1750433450874,-153.0,0.00021918,2]
[366756619,1750433450884,-153.0,0.00021918,2]
[366756620,1750433450894,-153.0,0.00021918,2]
[366756621,1750433450903,-153.0,0.00021918,2]
[366756622,1750433450914,-153.0,0.00021918,2]
[366756623,1750433450923,-153.0,0.00021918,2]
[366756624,1750433450933,-153.0,0.00021918,2]
[366756625,1750433450943,-153.0,0.00021918,2]
[366756626,1750433450952,-153.0,0.00021918,2]
[366756627,1750433450962,-153.0,0.00021918,2]
[366756628,1750433450971,-153.0,0.00021918,2]
[366756629,1750433450981,-153.0,0.00021918,2]
[366756630,1750433450991,-153.0,0.00021918,2]
[366756631,1750433451001,-151.0,0.00021918,2]
[366756632,1750433451014,-151.0,0.00021918,2]
[366756633,1750433451024,-151.0,0.00021918,2]
[366756634,1750433451034,-151.0,0.00021918,2]
[366756635,1750433451044,-166.0,0.00021918,2]
[366756636,1750433451055,-326.2483826,0.00021918,7]
[366756637,1750433451065,-151.0,0.00021918,2]
[366756638,1750433451075,-151.0,0.00021918,2]
[366756639,1750433451086,-151.0,0.00021918,2]
[366756640,1750433451096,-158.156376,0.00021918,2]
[366756641,1750433451106,-400.64606248,0.00021918,7]
[366756642,1750433451115,-266.78635879,0.00021918,3]
[366756643,1750433451125,-171.0,0.00021918,2]
[366756644,1750433451135,-171.0,0.00021918,2]
[366756645,1750433451144,-271.23252024,0.00021918,2]
[366756646,1750433451154,-151.0,0.00021918,2]
[366756647,1750433451163,-151.0,0.00021918,2]
[366756648,1750433451172,-166.5555692,0.00021918,2]
[366756649,1750433451183,-151.0,0.00021918,2]
[366756650,1750433451192,-151.0,0.00021918,2]
[366756651,1750433451202,-151.0,0.00021918,2]
[366756652,1750433451212,-150.17579791,0.00021918,2]
[366756653,1750433451222,-151.0,0.00021918,2]
[366756654,1750433451232,-151.0,0.00021918,2]
[366756655,1750433451241,-151.0,0.00021918,2]
[366756656,1750433451251,-151.0,0.00021918,2]
[366756657,1750433451260,-151.0,0.00021918,2]
[366756658,1750433451270,-235.10670729,0.00021918,2]
[366756659,1750433451279,-151.0,0.00021918,2]
[366756660,1750433451289,-151.0,0.00021918,2]
[366756661,1750433451298,-151.0,0.00021918,2]
[366756662,1750433451310,-151.0,0.00021918,7]
[366756663,1750433451319,-172.333507,0.00021918,7]
[366756664,1750433451330,-172.333507,0.00021918,7]
[366756665,1750433451339,-500.0,0.00021918,2]
[366756666,1750433451349,-500.0,0.00021918,2]
[366756667,1750433451359,-500.0,0.00021918,2]
[366756668,1750433451368,-330.812634,0.00021918,2]
[366756669,1750433451378,-762.0,0.00021939,2]
[366756670,1750433451388,-200.0,0.00021951,2]
[366756671,1750433451398,-179705.95988385,0.00021952,2]
[366756672,1750433451407,-151.0,0.00021952,7]
[366756673,1750433451417,-151.0,0.00021952,7]
[366756674,1750433451427,-151.0,0.00021952,7]
[366756675,1750433451437,-153.684854,0.00021952,7]
[366756676,1750433451447,-151.0,0.00021952,7]
[366756677,1750433451458,-151.0,0.00021952,7]
[366756678,1750433451468,-151.0,0.00021952,7]
[366756679,1750433451479,-151.0,0.00021952,7]
[366756680,1750433451490,-151.0,0.00021952,7]
[366756681,1750433451500,-151.0,0.00021952,7]
[366756682,1750433451510,-151.0,0.00021952,7]
[366756683,1750433451521,-654.470681,0.00021952,2]
[366756684,1750433451531,-654.470681,0.00021952,2]
[366756685,1750433451541,-151.0,0.00021952,7]
[366756686,1750433451550,-165.630389,0.00021952,7]
[366756687,1750433451565,-171.140173,0.00021952,7]
[366756688,1750433451575,-151.0,0.00021952,7]
[366756689,1750433451585,-151.0,0.00021952,7]
[366756690,1750433451595,-151.0,0.00021952,7]
[366756691,1750433451605,-151.0,0.00021952,7]
[366756692,1750433451615,-152.879845,0.00021952,7]
[366756693,1750433451624,-497.985523,0.00021952,7]
[366756694,1750433451634,-497.985523,0.00021952,7]
[366756695,1750433451644,-241.66541,0.00021952,7]
[366756696,1750433451654,-241.66541,0.00021952,7]
[366756697,1750433451664,-151.0,0.00021952,7]
[366756698,1750433451674,-151.0,0.00021952,7]
[366756699,1750433451684,-151.0,0.00021952,7]
[366756700,1750433451694,-217.237617,0.00021952,7]
[366756701,1750433451704,-151.0,0.00021952,7]
[366756702,1750433451714,-151.0,0.00021952,7]
[366756703,1750433451724,-449.464762,0.00021952,7]
[366756704,1750433451734,-449.464762,0.00021952,7]
[366756705,1750433451743,-1760.69672,0.00021952,7]
[366756706,1750433451753,-1760.69672,0.00021952,7]
[366756707,1750433451762,-496.086869,0.00021952,7]
[366756708,1750433451772,-496.086869,0.00021952,7]
[366756709,1750433451782,-200.178999,0.00021952,7]
[366756710,1750433451792,-200.178999,0.00021952,7]
[366756711,1750433451802,-151.0,0.00021952,7]
[366756712,1750433451814,-151.0,0.00021952,7]
[366756713,1750433451825,-295.372042,0.00021952,7]
[366756714,1750433451834,-223.367122,0.00021952,7]
[366756715,1750433451844,-295.372042,0.00021952,7]
[366756716,1750433451854,-223.367122,0.00021952,7]
[366756717,1750433451863,-151.0,0.00021952,7]
[366756718,1750433451873,-151.0,0.00021952,7]
[366756719,1750433451882,-267.733687,0.00021952,7]
[366756720,1750433451893,-267.733687,0.00021952,7]
[366756721,1750433451903,-151.0,0.00021952,7]
[366756722,1750433451913,-570.26621,0.00021952,7]
[366756723,1750433451922,-570.26621,0.00021952,7]
[366756724,1750433451931,-213.51557418,0.0002196,7]
[366756725,1750433451941,-1201.593788,0.0002196,7]
[366756726,1750433451951,-1201.593788,0.0002196,7]
[366756727,1750433451961,-4105.96965496,0.00021969,6]
[366756728,1750433451970,-500.0,0.00021973,2]
[366756729,1750433451979,-515.56249769,0.00021973,2]
[366756730,1750433451988,-500.0,0.00021973,2]
[366756731,1750433451999,-500.0,0.00021973,2]
[366756732,1750433452014,-260.61480151,0.00021973,2]
[366756733,1750433452023,-500.0,0.00021973,2]
[366756734,1750433452033,-229.35028853,0.00021973,2]
[366756735,1750433452043,-550.30617646,0.00021973,2]
[366756736,1750433452052,-263.42834044,0.00021973,2]
[366756737,1750433452064,-153.05257279,0.00021973,2]
[366756738,1750433452074,-151.0,0.00021973,7]
[366756739,1750433452085,-172.333507,0.00021973,7]
[366756740,1750433452095,-172.333507,0.00021973,7]
[366756741,1750433452104,-9838.40670332,0.00022,2]
[366756742,1750433452113,-351.48959002,0.00022,2]
[366756743,1750433452123,-18470.4244027,0.00022,2]
[366756744,1750433452132,-213.51557418,0.00022,3]
[366756745,1750433452142,-3000.0,0.00022,2]
[366756746,1750433452152,-151.0,0.00022,7]
[366756747,1750433452161,-151.0,0.00022,7]
[366756748,1750433452171,-1748.0,0.00022,3]
[366756749,1750433452181,-1748.0,0.00022,3]
[366756750,1750433452190,-1748.0,0.00022,3]
[366756751,1750433452200,-1748.0,0.00022,3]
[366756752,1750433452209,-1748.0,0.00022,3]
[366756753,1750433452219,-1748.0,0.00022,3]
[366756754,1750433452229,-1748.0,0.00022,3]
[366756755,1750433452239,-1726.0,0.00022,3]
[366756756,1750433452248,-151.0,0.00022,7]
[366756757,1750433452259,-151.0,0.00022,7]
[366756758,1750433452269,-286.962943,0.00022,7]
[366756759,1750433452278,-151.0,0.00022,7]
[366756760,1750433452288,-151.0,0.00022,7]
[366756761,1750433452297,-654.470681,0.00022,2]
[366756762,1750433452308,-654.470681,0.00022,2]
[366756763,1750433452317,-151.0,0.00022,7]
[366756764,1750433452327,-151.0,0.00022,7]
[366756765,1750433452336,-151.0,0.00022,7]
[366756766,1750433452346,-497.985523,0.00022,7]
[366756767,1750433452356,-497.985523,0.00022,7]
[366756768,1750433452365,-241.66541,0.00022,7]
[366756769,1750433452375,-241.66541,0.00022,7]
[366756770,1750433452384,-151.0,0.00022,7]
[366756771,1750433452394,-151.0,0.00022,7]
[366756772,1750433452403,-151.0,0.00022,7]
[366756773,1750433452413,-151.0,0.00022,7]
[366756774,1750433452423,-465.347029,0.00022,7]
[366756775,1750433452432,-465.347029,0.00022,7]
[366756776,1750433452442,-12546.90244252,0.00022,3]
[366756777,1750433452451,-523.92420239,0.00022,3]
[366756778,1750433452461,-150.415919,0.00022,2]
[366756779,1750433452471,-160.0,0.00022,3]
[366756780,1750433452481,-846.08887863,0.00022,3]
[366756781,1750433452491,-160.0,0.00022,3]
[366756782,1750433452501,-319.6056,0.00022,2]
[366756783,1750433452510,-3000.0,0.0002201,2]
[366756784,1750433452520,-168.0,0.0002201,2]
[366756785,1750433452530,-3000.0,0.0002202,2]
[366756786,1750433452539,-407.29758069,0.00022027,2]
[366756787,1750433452548,-3000.0,0.0002203,2]
[366756788,1750433452560,-218.60418071,0.00022035,7]
[366756789,1750433452570,-3000.0,0.0002204,2]
[366756790,1750433452579,-151.0,0.0002204,7]
[366756791,1750433452589,-151.0,0.0002204,7]
[366756792,1750433452599,-449.464762,0.0002204,7]
[366756793,1750433452609,-449.464762,0.0002204,7]
[366756794,1750433452619,-223.367122,0.0002204,7]
[366756795,1750433452629,-223.367122,0.0002204,7]
[366756796,1750433452639,-870.3,0.00022044,2]
[366756797,1750433452649,-2937.44,0.00022044,2]
[366756798,1750433452659,-3686.87,0.00022044,2]
[366756799,1750433452669,-496.49,0.00022044,2]
[366756800,1750433452679,-2627.66,0.00022046,2]
[366756801,1750433452689,-2000.48,0.00022046,2]
[366756802,1750433452699,-2663.94,0.00022046,2]
[366756803,1750433452709,-970.84,0.00022046,2]
[366756804,1750433452718,-1125.24,0.00022046,2]
[366756805,1750433452728,-1152.09,0.00022046,2]
[366756806,1750433452738,-1789.36,0.00022046,2]
[366756807,1750433452747,-460.0,0.00022046,2]
[366756808,1750433452757,-460.0,0.00022046,2]
[366756809,1750433452768,-485.8,0.00022046,2]
[366756810,1750433452778,-460.0,0.00022046,2]
[366756811,1750433452787,-514.53,0.00022046,2]
[366756812,1750433452798,-623.89,0.00022046,2]
[366756813,1750433452809,-460.0,0.00022046,2]
[366756814,1750433452818,-151.0,0.0002205,7]
[366756815,1750433452828,-173.198696,0.0002205,7]
[366756816,1750433452837,-3000.0,0.0002205,2]
[366756817,1750433452848,-151.0,0.0002206,7]
[366756818,1750433452858,-151.0,0.0002206,7]
[366756819,1750433452868,-151.0,0.0002206,7]
[366756820,1750433452877,-3000.0,0.0002206,2]
[366756821,1750433452887,-217.237617,0.0002206,7]
[366756822,1750433452896,-151.0,0.0002206,7]
[366756823,1750433452906,-200.178999,0.0002206,7]
[366756824,1750433452915,-200.178999,0.0002206,7]
[366756825,1750433452925,-207.91898637,0.00022065,11]
[366756826,1750433452935,-168.0,0.00022065,2]
[366756827,1750433453069,-3000.0,0.0002207,2]
[366756828,1750433453080,-496.086869,0.0002207,7]
[366756829,1750433453091,-496.086869,0.0002207,7]
[366756830,1750433453100,-762.0,0.00022071,2]
[366756831,1750433453111,-218.60418071,0.00022073,10]
[366756832,1750433453120,-4025.277674,0.0002208,2]
[366756833,1750433453130,-151.0,0.0002208,7]
[366756834,1750433453139,-151.0,0.0002208,7]
[366756835,1750433453149,-1760.69672,0.0002208,7]
[366756836,1750433453159,-1760.69672,0.0002208,7]
[366756837,1750433453168,-940.05,0.000221,2]
[366756838,1750433453178,-168.0,0.00022107,2]
[366756839,1750433453188,-218.60418071,0.0002211,10]
[366756840,1750433453197,-460.0,0.00022128,2]
[366756841,1750433453207,-460.0,0.00022128,2]
[366756842,1750433453216,-460.0,0.00022128,2]
[366756843,1750433453226,-805.06,0.00022128,2]
[366756844,1750433453235,-460.0,0.00022128,2]
[366756845,1750433453244,-460.0,0.00022128,2]
[366756846,1750433453254,-460.0,0.00022128,2]
[366756847,1750433453264,-460.0,0.00022136,2]
[366756848,1750433453273,-682.55,0.00022136,2]
[366756849,1750433453283,-717.65,0.00022136,2]
[366756850,1750433453292,-460.0,0.00022136,2]
[366756851,1750433453302,-2812.19,0.00022136,2]
[366756852,1750433453313,-557.69,0.00022136,2]
[366756853,1750433453323,-460.0,0.00022136,2]
[366756854,1750433453332,-1650.16,0.00022136,2]
[366756855,1750433453342,-460.0,0.00022136,2]
[366756856,1750433453352,-499.09,0.00022136,2]
[366756857,1750433453362,-487.35,0.00022136,2]
[366756858,1750433453371,-1344.78,0.00022136,2]
[366756859,1750433453381,-1358.6,0.00022137,2]
[366756860,1750433453391,-3335.39,0.00022137,2]
[366756861,1750433453401,-1114.62,0.00022137,2]
[366756862,1750433453411,-723.54,0.00022138,2]
[366756863,1750433453421,-801.84,0.00022138,2]
[366756864,1750433453432,-905.39,0.00022138,2]
[366756865,1750433453442,-375.41013313,0.00022139,2]
[366756866,1750433453452,-4105.96965496,0.00022141,6]
[366756867,1750433453461,-168.0,0.00022146,2]
[366756868,1750433453471,-1071.91904621,0.00022147,2]
[366756869,1750433453481,-218.60418071,0.00022148,6]
[366756870,1750433453491,-460.0,0.00022149,2]
[366756871,1750433453500,-476.53,0.00022149,2]
[366756872,1750433453511,-151.0,0.00022149,7]
[366756873,1750433453520,-151.0,0.00022149,7]
[366756874,1750433453530,-151.0,0.00022149,7]
[366756875,1750433453540,-1201.593788,0.00022149,7]
[366756876,1750433453550,-1201.593788,0.00022149,7]
[366756877,1750433453560,-218.60418071,0.0002215,10]
[366756878,1750433453570,-295.372042,0.0002215,7]
[366756879,1750433453580,-295.372042,0.0002215,7]
[366756880,1750433453590,-267.733687,0.0002215,7]
[366756881,1750433453599,-267.733687,0.0002215,7]
[366756882,1750433453609,-160.0,0.00022152,2]
[366756883,1750433453619,-151.0,0.00022176,7]
[366756884,1750433453629,-151.0,0.00022176,7]
[366756885,1750433453639,-151.0,0.00022181,7]
[366756886,1750433453649,-151.0,0.00022181,7]
[366756887,1750433453659,-151.0,0.00022181,7]
[366756888,1750433453669,-218.60418071,0.00022185,12]
[366756889,1750433453680,-200.0,0.00022191,30]
[366756890,1750433453690,-207.859674,0.000222,7]
[366756891,1750433453700,-151.0,0.000222,7]
[366756892,1750433453710,-230.443268,0.000222,7]
[366756893,1750433453720,-213.51557418,0.000222,7]
[366756894,1750433453730,-151.0,0.000222,7]
[366756895,1750433453740,-151.0,0.000222,7]
[366756896,1750433453749,-151.0,0.000222,7]
[366756897,1750433453759,-295.75860817,0.000222,7]
[366756898,1750433453770,-654.470681,0.000222,2]
[366756899,1750433453781,-654.470681,0.000222,2]
[366756900,1750433453791,-151.0,0.000222,7]
[366756901,1750433453802,-497.985523,0.000222,7]
[366756902,1750433453814,-497.985523,0.000222,7]
[366756903,1750433453824,-241.66541,0.000222,7]
[366756904,1750433453835,-241.665418,0.000222,7]
[366756905,1750433453844,-151.0,0.000222,7]
[366756906,1750433453855,-151.0,0.000222,7]
[366756907,1750433453864,-172.333507,0.000222,7]
[366756908,1750433453874,-172.333507,0.000222,7]
[366756909,1750433453883,-151.0,0.00022202,7]
[366756910,1750433453893,-2500.0,0.00022205,2]
[366756911,1750433453903,-1000.0,0.00022221,2]
[366756912,1750433453913,-1000.0,0.00022221,2]
[366756913,1750433453923,-1000.0,0.00022221,2]
[366756914,1750433453933,-500.0,0.00022221,2]
[366756915,1750433453943,-477.72948211,0.00022221,2]
[366756916,1750433453953,-1000.0,0.00022221,2]
[366756917,1750433453962,-1000.0,0.00022221,2]
[366756918,1750433453972,-517.89964897,0.00022221,2]
[366756919,1750433453983,-500.0,0.00022221,2]
[366756920,1750433453992,-1000.0,0.00022221,2]
[366756921,1750433454003,-1000.0,0.00022221,2]
[366756922,1750433454015,-632.55334313,0.00022221,2]
[366756923,1750433454025,-1000.0,0.00022221,2]
[366756924,1750433454035,-1000.0,0.00022221,2]
[366756925,1750433454045,-399.08065305,0.00022221,2]
[366756926,1750433454056,-440.0695689,0.00022221,2]
[366756927,1750433454065,-1000.0,0.00022221,2]
[366756928,1750433454075,-1200.0,0.00022221,2]
[366756929,1750433454084,-500.0,0.00022221,2]
[366756930,1750433454094,-570.26621,0.00022221,7]
[366756931,1750433454103,-570.26621,0.00022221,7]
[366756932,1750433454113,-218.60418071,0.00022223,5]
[366756933,1750433454123,-168.0,0.00022226,2]
[366756934,1750433454132,-500.0,0.00022256,2]
[366756935,1750433454143,-218.60418071,0.0002226,3]
[366756936,1750433454152,-168.0,0.00022279,2]
[366756937,1750433454161,-160.0,0.00022293,5]
[366756938,1750433454171,-218.60418071,0.00022298,6]
[366756939,1750433454180,-4105.96965496,0.00022314,7]
[366756940,1750433454189,-870.3,0.00022318,2]
[366756941,1750433454200,-2937.44,0.00022318,2]
[366756942,1750433454210,-3686.87,0.00022318,2]
[366756943,1750433454219,-496.49,0.00022318,2]
[366756944,1750433454229,-207.91898637,0.0002232,6]
[366756945,1750433454239,-2627.66,0.0002232,2]
[366756946,1750433454248,-2000.48,0.0002232,2]
[366756947,1750433454258,-2663.94,0.0002232,2]
[366756948,1750433454267,-970.84,0.0002232,2]
[366756949,1750433454277,-1125.24,0.0002232,2]
[366756950,1750433454287,-1152.09,0.0002232,2]
[366756951,1750433454296,-1789.36,0.0002232,2]